fUSD/lending_fUSD_20240625
["ID","MTS","AMOUNT","RATE_DAILY","PERIOD"]
[330359304,1719327046784,-1959.75301746,0.00014,2]
[330359305,1719327046798,-715.43136283,0.00014,2]
[330359306,1719327046809,-1459.8116197,0.00014,2]
[330359307,1719327046820,-4350.02728032,0.00014,2]
[330359308,1719327046832,-520.38152683,0.00014,2]
[330359309,1719327046843,-1240.24,0.00014,2]
[330359310,1719327047076,-1359925.55370127,0.00014,2]
[330359311,1719327047088,-19999.65037,0.00014,2]
[330359312,1719327047099,-30387.46643267,0.00014,2]
[330359313,1719327047110,-56532.94853423,0.00014,2]
[330359314,1719327047121,-1061.66543703,0.00014,2]
[330359316,1719327262211,834.24,0.00018849,30]
[330359317,1719327641373,-834.24,0.00023831,30]
[330359318,1719327641435,-69293.94629119,0.00024,10]
[330359319,1719327641499,-109861.39349968,0.00024,15]
[330359320,1719327641571,-20241.78868576,0.00024,20]
[330359321,1719327641645,-13921.68378196,0.00024,15]
[330359322,1719327641709,-900.0,0.00024,25]
[330359323,1719327641776,-550.0,0.000241,12]
[330359324,1719327641847,-550.0,0.000246,12]
[330359325,1719327641923,-1350.0,0.00025,10]
[330359326,1719327641998,-900.0,0.00025,26]
[330359327,1719327642076,-667.90003883,0.00025,30]
[330359328,1719327642145,-463.4264975,0.00025,30]
[330359329,1719327642215,-550.0,0.000251,13]
[330359330,1719327642284,-550.0,0.000256,14]
[330359331,1719327642349,-900.0,0.00026,27]
[330359332,1719327642415,-1000.000001,0.00026,90]
[330359333,1719327642484,-550.0,0.000261,14]
[330359334,1719327642547,-550.0,0.000266,15]
[330359335,1719327642621,-662.20146362,0.000269,30]
[330359336,1719327642682,-900.0,0.00027,28]
[330359337,1719327642748,-416.89751532,0.00027,120]
[330359338,1719327642818,-191.8479895,0.00027,10]
[330359339,1719327642879,-550.0,0.000271,15]
[330359340,1719327643186,-150.0,0.00027397,30]
[330359341,1719327643247,-200.0,0.00027397,60]
[330359342,1719327643315,-8062.1,0.00027397,15]
[330359343,1719327643380,-150.0,0.00027534,30]
[330359344,1719327643444,-550.0,0.000276,16]
[330359345,1719327643507,-150.0,0.00027671,30]
[330359346,1719327643573,-150.0,0.00027808,30]
[330359347,1719327643637,-150.0,0.00027945,30]
[330359348,1719327643698,-900.0,0.00028,29]
[330359349,1719327643759,-2286.69856456,0.00028,30]
[330359350,1719327643825,-150.0,0.00028082,30]
[330359351,1719327643884,-2041.85965711,0.000281,15]
[330359352,1719327643947,-550.0,0.000281,16]
[330359353,1719327644009,-150.0,0.00028219,30]
[330359354,1719327644075,-150.0,0.00028356,30]
[330359355,1719327644137,-150.0,0.00028493,30]
[330359356,1719327644199,-550.0,0.000286,17]
[330359357,1719327644257,-150.0,0.0002863,30]
[330359358,1719327644322,-150.0,0.00028767,30]
[330359359,1719327644387,-834.24,0.00028812,30]
[330359360,1719327644449,-150.0,0.00028875,120]
[330359361,1719327644509,-150.0,0.00028904,30]
[330359362,1719327644573,-20101.0,0.00029,10]
[330359363,1719327644637,-501.14447931,0.00029,30]
[330359364,1719327644697,-150.0,0.00029041,30]
[330359365,1719327644762,-550.0,0.000291,17]
[330359366,1719327644828,-150.0,0.00029178,30]
[330359367,1719327644897,-150.0,0.00029315,30]
[330359368,1719327644962,-150.0,0.00029317,120]
[330359369,1719327645030,-2110.0,0.00029377,15]
[330359370,1719327645093,-150.0,0.00029381,120]
[330359371,1719327645157,-150.0,0.00029452,30]
[330359372,1719327645217,-150.0,0.00029589,30]
[330359373,1719327645279,-150.0,0.00029592,120]
[330359374,1719327645337,-550.0,0.000296,18]
[330359375,1719327645398,-150.0,0.00029602,120]
[330359376,1719327645458,-150.0,0.00029726,30]
[330359377,1719327645526,-150.0,0.00029754,120]
[330359378,1719327645587,-1746.143023,0.0002978,10]
[330359379,1719327645649,-1000.0,0.000298,10]
[330359380,1719327645712,-1000.0,0.0002982,10]
[330359381,1719327645777,-1000.0,0.0002984,10]
[330359382,1719327645842,-1000.0,0.0002986,10]
[330359383,1719327645910,-228.84798051,0.00029863,30]
[330359384,1719327645971,-2110.0,0.00029877,15]
[330359385,1719327646034,-1000.0,0.0002988,10]
[330359386,1719327646120,-1000.0,0.000299,10]
[330359387,1719327646182,-1000.0,0.0002992,10]
[330359388,1719327646245,-1000.0,0.0002994,10]
[330359389,1719327646303,-1000.0,0.0002996,10]
[330359390,1719327646362,-1000.0,0.0002998,10]
[330359391,1719327646424,-200.0,0.0003,10]
[330359392,1719327646483,-150.0,0.0003,14]
[330359393,1719327646542,-1661.7510532,0.0003,15]
[330359394,1719327646604,-1404.74753576,0.0003,60]
[330359395,1719327646663,-13418.59,0.0003,30]
[330359396,1719327646722,-153.931342,0.0003,14]
[330359397,1719327646782,-1000.0,0.0003,11]
[330359398,1719327646842,-550.0,0.000301,18]
[330359399,1719327646902,-200.0,0.00030137,60]
[330359400,1719327646964,-1600.0,0.00030137,10]
[330359401,1719327647022,-500.0,0.00030137,10]
[330359402,1719327647082,-2110.0,0.00030377,15]
[330359403,1719327647141,-550.0,0.000306,19]
[330359404,1719327647196,-150.0,0.00030679,120]
[330359405,1719327647256,-500.0,0.00030685,10]
[330359406,1719327647314,-1500.0,0.000308,14]
[330359407,1719327647375,-2110.0,0.00030877,15]
[330359408,1719327647431,-600.0,0.00030959,10]
[330359409,1719327647491,-150.0,0.00030982,120]
[330359410,1719327647548,-250.0,0.00031,15]
[330359411,1719327647606,-250.0,0.00031,120]
[330359412,1719327647663,-550.0,0.000311,19]
[330359413,1719327647721,-1600.0,0.00031233,10]
[330359414,1719327647779,-500.0,0.00031233,10]
[330359415,1719327647837,-2110.0,0.00031377,15]
[330359416,1719327647902,-150.0,0.00031385,120]
[330359417,1719327647965,-150.0,0.00031564,120]
[330359418,1719327648030,-150.0,0.00031585,120]
[330359419,1719327648090,-550.0,0.000316,20]
[330359420,1719327648150,-310.15733678,0.00031781,10]
[330359421,1719327648208,-2110.0,0.00031877,15]
[330359422,1719327648271,-5342.81698145,0.00032,14]
[330359423,1719327648330,-500.0,0.00032,120]
[330359424,1719327648391,-150.0,0.00032014,120]
[330359425,1719327648452,-600.0,0.00032055,10]
[330359426,1719327648514,-550.0,0.000321,21]
[330359427,1719327648579,-150.0,0.00032115,120]
[330359428,1719327648640,-150.0,0.00032185,120]
[330359429,1719327648697,-932.0359392,0.000323,120]
[330359430,1719327648754,-500.0,0.00032329,10]
[330359431,1719327648816,-1600.0,0.00032329,10]
[330359432,1719327648880,-2110.0,0.00032377,15]
[330359433,1719327648945,-550.0,0.000326,21]
[330359434,1719327649010,-156.41,0.000327,31]
[330359435,1719327649079,-156.41,0.000327,31]
[330359436,1719327649143,-156.41,0.000327,31]
[330359437,1719327649206,-200.0,0.00032877,60]
[330359438,1719327649269,-2110.0,0.00032877,15]
[330359439,1719327649332,-150.0,0.00032881,120]
[330359440,1719327649403,-156.41,0.000329,31]
[330359441,1719327649687,-156.41,0.000329,31]
[330359442,1719327649756,-500.0,0.00033,120]
[330359443,1719327649821,-159.10082919,0.00033,120]
[330359444,1719327649884,-1229.49853766,0.00033,120]
[330359445,1719327649951,-679.462983,0.00033,14]
[330359446,1719327650014,-550.0,0.000331,22]
[330359447,1719327650078,-156.41,0.000331,31]
[330359448,1719327650144,-156.41,0.000331,31]
[330359449,1719327650209,-176.96,0.00033151,120]
[330359450,1719327650270,-600.0,0.00033151,10]
[330359451,1719327650330,-156.41,0.000333,31]
[330359452,1719327650390,-156.41,0.000333,31]
[330359453,1719327650452,-2110.0,0.00033377,15]
[330359454,1719327650517,-1600.0,0.00033425,10]
[330359455,1719327650579,-206.10897301,0.00033425,10]
[330359456,1719327650642,-150.0,0.00033468,120]
[330359457,1719327650707,-156.41,0.000335,31]
[330359458,1719327650769,-156.41,0.000335,31]
[330359459,1719327650832,-560.061986,0.000336,22]
[330359460,1719327650896,-834.24,0.00033793,30]
[330359461,1719327650962,-155.40063404,0.000338,120]
[330359462,1719327651026,-387.64845191,0.00033811,40]
[330359463,1719327651088,-642.59771565,0.00033811,40]
[330359464,1719327651147,-5000.0,0.00033811,40]
[330359465,1719327651206,-301.24860999,0.00033811,40]
[330359466,1719327651262,-1026.90885455,0.00033811,40]
[330359467,1719327651321,-2110.0,0.00033877,15]
[330359468,1719327651380,-473.74531791,0.00034,12]
[330359469,1719327651438,-4338.77283765,0.00034,12]
[330359470,1719327651497,-500.0,0.00034,120]
[330359471,1719327651558,-1000.0,0.00034,120]
[330359472,1719327651624,-184.98065112,0.00034,12]
[330359473,1719327651685,-600.0,0.00034247,10]
[330359474,1719327651744,-2110.0,0.00034377,15]
[330359475,1719327651804,-150.0,0.00034395,120]
[330359476,1719327651870,-250.0,0.00034438,40]
[330359477,1719327651930,-449.3081257,0.00034521,10]
[330359478,1719327651991,-150.0,0.00034548,10]
[330359479,1719327652052,-150.0,0.0003467,120]
[330359480,1719327652111,-150.0,0.00034811,120]
[330359481,1719327652172,-150.0,0.0003487,120]
[330359482,1719327652230,-2110.0,0.00034877,15]
[330359483,1719327652286,-150.0,0.00034912,120]
[330359484,1719327652344,-1248.714341,0.0003494,14]
[330359485,1719327652400,-1000.0,0.0003496,14]
[330359486,1719327652455,-1000.0,0.0003498,14]
[330359487,1719327652511,-1000.0,0.00035,10]
[330359488,1719327652573,-20500.29051346,0.00035,10]
[330359489,1719327652631,-652.45940549,0.00035,30]
[330359490,1719327652689,-1066.32358868,0.00035,30]
[330359491,1719327652757,-500.0,0.00035,120]
[330359492,1719327652826,-217.9620493,0.00035,120]
[330359493,1719327652886,-200.0,0.00035,60]
[330359494,1719327652951,-156.74660047,0.00035,30]
[330359495,1719327653011,-1000.0,0.00035,14]
[330359496,1719327653068,-500.0,0.00035,120]
[330359497,1719327653129,-600.0,0.00035343,10]
[330359498,1719327653186,-2110.0,0.00035377,15]
[330359499,1719327653241,-261.34823549,0.0003549,10]
[330359500,1719327653299,-200.0,0.00035616,60]
[330359501,1719327653354,-2129.02,0.00035877,15]
[330359502,1719327653410,-509.7872818,0.00036,120]
[330359503,1719327653465,-1000.0,0.00036,120]
[330359504,1719327653522,-250.0,0.00036,50]
[330359505,1719327653582,-150.0,0.00036106,120]
[330359506,1719327653639,-150.0,0.00036384,120]
[330359507,1719327653695,-150.0,0.00036421,120]
[330359508,1719327653750,-327.71854038,0.00036439,10]
[330359509,1719327653807,-150.0,0.00036611,120]
[330359510,1719327653874,-375.0,0.00036617,120]
[330359511,1719327653941,-714.21255819,0.00037,120]
[330359512,1719327654003,-150.0,0.00037218,120]
[330359513,1719327654075,-150.0,0.0003739,120]
[330359514,1719327654141,-150.0,0.0003748,10]
[330359515,1719327654209,-250.0,0.00037561,60]
[330359516,1719327654273,-150.0,0.00037676,120]
[330359517,1719327654337,-150.0,0.00037726,120]
[330359518,1719327654401,-155.0,0.00038,90]
[330359519,1719327654463,-467.75147794,0.00038,120]
[330359520,1719327654527,-1150.0,0.00038,120]
[330359521,1719327654589,-1178.69292167,0.00038,30]
[330359522,1719327654654,-1000.0,0.00038,120]
[330359523,1719327654718,-151.59042768,0.00038,30]
[330359524,1719327654781,-1215.24183642,0.00038,120]
[330359525,1719327654842,-150.0,0.00038042,120]
[330359526,1719327654909,-150.0,0.00038115,120]
[330359527,1719327654974,-375.0,0.00038232,120]
[330359528,1719327655040,-272.51454224,0.00038356,60]
[330359529,1719327655101,-429.9295473,0.00038356,30]
[330359530,1719327655162,-429.9295473,0.00038521,30]
[330359531,1719327655223,-1500.0,0.000386,20]
[330359532,1719327655286,-429.9295473,0.00038685,30]
[330359533,1719327655347,-150.0,0.00038689,120]
[330359534,1719327655408,-605.36207741,0.000387,30]
[330359535,1719327655476,-834.24,0.00038775,30]
[330359536,1719327655542,-150.0,0.00038785,120]
[330359537,1719327655607,-429.9295473,0.00038849,30]
[330359538,1719327655672,-398.53614047,0.000389,30]
[330359539,1719327655745,-50000.0,0.00039,29]
[330359540,1719327655821,-167.08205617,0.00039,30]
[330359541,1719327655901,-1410.22359582,0.00039,120]
[330359542,1719327655973,-1189.35427504,0.00039,120]
[330359543,1719327656043,-189.88160801,0.00039,15]
[330359544,1719327656326,-1499.53301917,0.00039,120]
[330359545,1719327656389,-429.9295473,0.00039014,30]
[330359546,1719327656451,-150.0,0.00039026,120]
[330359547,1719327656513,-250.0,0.00039123,70]
[330359548,1719327656581,-429.9295473,0.00039178,30]
[330359549,1719327656641,-150.0,0.00039184,120]
[330359550,1719327656704,-350.0,0.000393,15]
[330359551,1719327656765,-429.9295473,0.00039315,30]
[330359552,1719327656833,-150.0,0.00039375,120]
[330359553,1719327656895,-429.9295473,0.00039479,30]
[330359554,1719327656971,-429.9295473,0.00039644,30]
[330359555,1719327657030,-1762.93600331,0.000398,120]
[330359556,1719327657090,-429.9295473,0.00039808,30]
[330359557,1719327657149,-375.0,0.00039848,120]
[330359558,1719327657206,-294.60401667,0.0003985,30]
[330359559,1719327657262,-999.9999999,0.0003989,20]
[330359560,1719327657318,-417510.6332502,0.000399,30]
[330359561,1719327673803,-22489.3667498,0.000399,30]
[330359562,1719327673871,-429.9295473,0.00039973,30]
[330359563,1719327673941,-407.99999901,0.00039986,90]
[330359564,1719327674023,-50000.0,0.0004,30]
[330359565,1719327674097,-1000.0,0.0004,20]
[330359566,1719327674166,-500.0,0.0004,15]
[330359567,1719327674234,-500.0,0.0004,15]
[330359568,1719327674298,-205.02,0.0004,12]
[330359569,1719327674363,-384.65903954,0.0004,30]
[330359570,1719327674425,-209.81301859,0.0004,120]
[330359571,1719327674492,-477.12749073,0.0004,30]
[330359572,1719327674553,-541.8436313,0.0004,30]
[330359573,1719327674616,-215.31340754,0.0004,30]
[330359574,1719327674681,-4869.03259738,0.0004,40]
[330359575,1719327674745,-341.89382197,0.0004,30]
[330359576,1719327674804,-184.47937894,0.0004,30]
[330359577,1719327674866,-1162.72791237,0.0004,30]
[330359578,1719327674932,-367.31217447,0.0004,120]
[330359579,1719327675002,-430.92013627,0.0004,120]
[330359580,1719327675073,-1025.52948633,0.0004,60]
[330359581,1719327675155,-200.0,0.0004,120]
[330359582,1719327675223,-700.0,0.0004,30]
[330359583,1719327675289,-1050.0,0.0004,120]
[330359584,1719327675356,-250.0,0.0004,120]
[330359585,1719327675423,-1000.0,0.0004,120]
[330359586,1719327675488,-168.99014254,0.0004,30]
[330359587,1719327675552,-302.48783543,0.0004,30]
[330359588,1719327675614,-217.69642094,0.0004,120]
[330359589,1719327675680,-217.99,0.0004,120]
[330359590,1719327675746,-151.0,0.0004,120]
[330359591,1719327675814,-172.18888889,0.0004,120]
[330359592,1719327675885,-224.7912922,0.0004,30]
[330359593,1719327675952,-201.1688263,0.0004,120]
[330359594,1719327676019,-1200.1039773,0.0004,30]
[330359595,1719327676087,-2474.75772666,0.0004,120]
[330359596,1719327676156,-7552.65952787,0.0004,120]
[330359597,1719327676223,-150.0,0.00040039,120]
[330359598,1719327676286,-1526.08259424,0.00040041,30]
[330359599,1719327676353,-690.22260051,0.00040111,30]
[330359600,1719327676422,-429.9295473,0.00040137,30]
[330359601,1719327676496,-150.0,0.00040257,120]
[330359602,1719327676568,-150.0,0.00040292,120]
[330359603,1719327676641,-429.9295473,0.00040301,30]
[330359604,1719327676706,-157.30893788,0.00040336,30]
[330359605,1719327676770,-429.9295473,0.00040466,30]
[330359606,1719327676836,-659.90412386,0.00040472,30]
[330359607,1719327676907,-429.9295473,0.0004063,30]
[330359608,1719327676975,-165.39,0.00040639,120]
[330359609,1719327677252,-150.0,0.00040656,120]
[330359610,1719327677314,-690.22260051,0.0004067,30]
[330359611,1719327677374,-250.0,0.00040684,80]
[330359612,1719327677434,-247.69048818,0.0004069,30]
[330359613,1719327677493,-2420.0,0.000407,81]
[330359614,1719327677550,-172.18888889,0.00040712,120]
[330359615,1719327677610,-150.0,0.0004076,15]
[330359616,1719327677669,-40928.5,0.0004079,30]
[330359617,1719327677727,-2105.164463,0.000408,30]
[330359618,1719327677787,-159.5,0.00040827,30]
[330359619,1719327677850,-150.0,0.00040843,120]
[330359620,1719327677912,-247.69048818,0.00040874,30]
[330359621,1719327677978,-151.92007356,0.00040948,30]
[330359622,1719327678040,-50000.0,0.00041,31]
[330359623,1719327678104,-174.35003686,0.00041,60]
[330359624,1719327678164,-1000.0,0.00041,30]
[330359625,1719327678224,-1027.22568223,0.00041,120]
[330359626,1719327678284,-567.68,0.00041,120]
[330359627,1719327678348,-2026.2516393,0.00041013,30]
[330359628,1719327678411,-152.0,0.00041041,31]
[330359629,1719327678476,-510.0,0.00041095,120]
[330359630,1719327678540,-1000.0,0.00041096,30]
[330359631,1719327678603,-151.0,0.00041123,120]
[330359632,1719327678664,-150.0,0.00041173,30]
[330359633,1719327678726,-150.0,0.00041185,30]
[330359634,1719327678785,-415.6185325,0.00041204,30]
[330359635,1719327678851,-180.23194071,0.00041204,30]
[330359636,1719327678913,-157.30893788,0.00041236,30]
[330359637,1719327678979,-1000.0,0.00041252,30]
[330359638,1719327679049,-183.95081899,0.00041287,30]
[330359639,1719327679117,-150.0,0.00041318,30]
[330359640,1719327679182,-415.6185325,0.00041345,30]
[330359641,1719327679250,-180.23194071,0.00041345,30]
[330359642,1719327679319,-166.66666667,0.00041349,30]
[330359643,1719327679391,-150.0,0.00041357,120]
[330359644,1719327679468,-150.0,0.0004136,30]
[330359645,1719327679544,-510.0,0.00041369,120]
[330359646,1719327679618,-150.0,0.00041373,30]
[330359647,1719327679689,-1000.0,0.00041409,30]
[330359648,1719327679756,-172.18888889,0.00041425,120]
[330359649,1719327679821,-382.3,0.00041463,120]
[330359650,1719327679889,-150.0,0.00041464,30]
[330359651,1719327679954,-150.97008216,0.00041485,30]
[330359652,1719327680018,-415.6185325,0.00041486,30]
[330359653,1719327680080,-180.23194071,0.00041486,30]
[330359654,1719327680151,-171.41014845,0.00041546,30]
[330359655,1719327680219,-183.95081899,0.00041546,30]
[330359656,1719327680284,-150.0,0.00041562,30]
[330359657,1719327680348,-1000.0,0.00041566,30]
[330359658,1719327680411,-183.95081899,0.00041571,30]
[330359659,1719327680480,-150.0,0.0004161,30]
[330359660,1719327680546,-415.6185325,0.00041627,30]
[330359661,1719327680611,-180.23194071,0.00041627,30]
[330359662,1719327680677,-510.0,0.00041643,120]
[330359663,1719327680747,-156.36496914,0.00041647,30]
[330359664,1719327680811,-155.69335686,0.00041667,30]
[330359665,1719327680881,-1000.0,0.00041722,30]
[330359666,1719327680951,-150.0,0.00041751,30]
[330359667,1719327681016,-150.0,0.00041755,30]
[330359668,1719327681082,-415.6185325,0.00041768,30]
[330359669,1719327681148,-180.23194071,0.00041768,30]
[330359670,1719327681209,-3820.01,0.0004177,30]
[330359671,1719327681270,-3820.01,0.0004177,30]
[330359672,1719327681331,-3820.01,0.0004177,30]
[330359673,1719327681395,-3820.01,0.0004177,30]
[330359674,1719327681456,-166.66666666,0.00041812,30]
[330359675,1719327681517,-155.177234,0.00041816,30]
[330359676,1719327681582,-1526.08259424,0.00041836,30]
[330359677,1719327681650,-166.66666666,0.00041847,30]
[330359678,1719327681711,-150.0,0.00041859,30]
[330359679,1719327681772,-1000.0,0.00041879,30]
[330359680,1719327681836,-151.0,0.0004188,30]
[330359681,1719327681902,-298.0,0.0004188,30]
[330359682,1719327681967,-300.0,0.0004188,30]
[330359683,1719327682026,-2575.00013331,0.00041898,50]
[330359684,1719327682085,-383.24674379,0.000419,120]
[330359685,1719327682150,-150.0,0.00041901,30]
[330359686,1719327682208,-415.6185325,0.00041909,30]
[330359687,1719327682267,-180.23194071,0.00041909,30]
[330359688,1719327682327,-510.0,0.00041917,120]
[330359689,1719327682390,-150.0,0.0004194,30]
[330359690,1719327682450,-151.10940014,0.0004196,30]
[330359691,1719327682514,-50000.0,0.00042,32]
[330359692,1719327682572,-195.93344671,0.00042,20]
[330359693,1719327682638,-321.18767132,0.00042,120]
[330359694,1719327682697,-955.54955712,0.00042,120]
[330359695,1719327682755,-202.80833249,0.00042,120]
[330359696,1719327682814,-5242.7529488,0.00042,120]
[330359697,1719327682872,-950.0,0.00042,120]
[330359698,1719327682933,-3000.0,0.00042,100]
[330359699,1719327682995,-3000.0,0.00042,110]
[330359700,1719327683059,-223000.0,0.00042,75]
[330359701,1719327683336,-166.6666667,0.0004201,30]
[330359702,1719327683412,-1000.0,0.00042035,30]
[330359703,1719327683485,-3820.01,0.00042044,30]
[330359704,1719327683552,-3820.01,0.00042044,30]
[330359705,1719327683614,-150.0,0.00042046,30]
[330359706,1719327683674,-415.6185325,0.00042051,30]
[330359708,1719327683734,-180.23194071,0.00042051,30]
[330359709,1719327683798,-150.0,0.00042129,30]
[330359710,1719327683860,-172.18888889,0.00042137,120]
[330359711,1719327683921,-220.3233846,0.00042191,120]
[330359712,1719327683982,-415.6185325,0.00042192,30]
[330359713,1719327684049,-150.0,0.00042192,30]
[330359714,1719327684122,-150.0,0.00042192,30]
[330359715,1719327684188,-180.23194071,0.00042192,30]
[330359716,1719327684256,-150.0,0.00042192,30]
[330359717,1719327684323,-1000.0,0.00042192,30]
[330359718,1719327684390,-166.66666668,0.00042198,30]
[330359719,1719327684458,-373.6174638,0.000422,120]
[330359720,1719327684525,-250.0,0.00042246,90]
[330359721,1719327684590,-151.0,0.00042247,120]
[330359722,1719327684659,-2026.2516393,0.00042284,30]
[330359723,1719327684725,-3820.01,0.00042317,30]
[330359724,1719327684790,-3820.01,0.00042317,30]
[330359725,1719327684856,-150.0,0.00042318,30]
[330359726,1719327684948,-690.22260051,0.00042322,30]
[330359727,1719327685040,-415.6185325,0.00042333,30]
[330359728,1719327685111,-180.23194071,0.00042333,30]
[330359729,1719327685176,-150.0,0.00042337,30]
[330359730,1719327685239,-247.69048818,0.00042348,30]
[330359731,1719327685301,-1000.0,0.00042348,30]
[330359732,1719327685365,-150.0,0.00042358,30]
[330359733,1719327685428,-155.69335686,0.00042361,30]
[330359734,1719327685497,-171.41014845,0.00042404,30]
[330359735,1719327685566,-659.90412386,0.00042431,30]
[330359736,1719327685634,-1526.08259424,0.00042457,30]
[330359737,1719327685703,-415.6185325,0.00042474,30]
[330359738,1719327685777,-180.23194071,0.00042474,30]
[330359739,1719327685850,-150.0,0.00042483,30]
[330359740,1719327685923,-1171.50255243,0.00042497,120]
[330359741,1719327685994,-351467.7790633,0.000425,30]
[330359742,1719327686066,-1000.0,0.00042505,30]
[330359743,1719327686141,-150.0,0.00042506,30]
[330359744,1719327686210,-183.95081899,0.00042511,30]
[330359745,1719327686273,-166.66666666,0.00042532,30]
[330359746,1719327686338,-150.97304623,0.00042551,30]
[330359747,1719327686412,-690.22260051,0.00042555,30]
[330359748,1719327686484,-2026.2516393,0.00042574,30]
[330359749,1719327686551,-3820.01,0.0004259,30]
[330359750,1719327686617,-3820.01,0.0004259,30]
[330359751,1719327686687,-415.6185325,0.00042615,30]
[330359752,1719327686752,-180.23194071,0.00042615,30]
[330359753,1719327686820,-155.69335686,0.00042624,30]
[330359754,1719327686892,-150.0,0.00042628,30]
[330359755,1719327686962,-1000.0,0.00042661,30]
[330359756,1719327687029,-151.92007356,0.00042674,30]
[330359757,1719327687095,-150.0,0.00042695,30]
[330359758,1719327687183,-150.97008216,0.00042701,30]
[330359759,1719327687266,-415.6185325,0.00042756,30]
[330359760,1719327687336,-180.23194071,0.00042756,30]
[330359761,1719327687408,-150.0,0.00042774,30]
[330359762,1719327687474,-154.30109746,0.00042775,30]
[330359763,1719327687539,-610808.421,0.0004278,75]
[330359764,1719327687603,-1000.0,0.00042818,30]
[330359765,1719327687665,-172.18888889,0.00042849,120]
[330359766,1719327687727,-157.30893788,0.00042851,30]
[330359767,1719327687788,-150.0,0.00042857,30]
[330359768,1719327687853,-3820.01,0.00042863,30]
[330359769,1719327687923,-3820.01,0.00042863,30]
[330359770,1719327687998,-201.22921606,0.0004288,120]
[330359771,1719327688067,-150.0,0.00042884,30]
[330359772,1719327688134,-415.6185325,0.00042897,30]
[330359773,1719327688201,-180.23194071,0.00042897,30]
[330359774,1719327688266,-791.13592473,0.000429,30]
[330359775,1719327688332,-793.2317921,0.000429,120]
[330359776,1719327688396,-150.0,0.00042919,30]
[330359777,1719327688460,-1000.0,0.00042975,30]
[330359778,1719327688527,-155.42704871,0.00042981,30]
[330359779,1719327688603,-50000.0,0.00043,33]
[330359780,1719327688668,-2000.0,0.00043,115]
[330359781,1719327688733,-2679.72007252,0.00043,60]
[330359782,1719327688802,-500.0,0.00043,30]
[330359783,1719327688875,-402.6004247,0.00043,30]
[330359784,1719327688946,-389841.86078482,0.00043,70]
[330359788,1719327849983,486.64,0.00018849,30]
[330359789,1719328026290,-4952.685598,0.00013204,2]
[330359790,1719328026315,-400.25,0.00013271,2]
[330359791,1719328026340,-1520.3,0.00013699,2]
[330359792,1719328026364,-781.8428,0.000139,2]
[330359793,1719328026389,-179.39771078,0.000139,2]
[330359794,1719328026413,-1349.18311938,0.000139,2]
[330359795,1719328026437,-12908.33396694,0.000139,2]
[330359796,1719328026461,-2500.0,0.000139,2]
[330359797,1719328026483,-2940.1145,0.000139,2]
[330359798,1719328026506,-203.94857317,0.0001399,2]
[330359799,1719328026528,-155.8,0.0001399,3]
[330359800,1719328026551,-467.44,0.0001399,3]
[330359801,1719328026578,-877678.9703142,0.00014,2]
[330359802,1719328042610,23900.0,0.00012092,2]
[330359803,1719328101802,263.20487435,0.00012092,2]
[330359804,1719328105113,155.0,0.00012092,2]
[330359805,1719328111961,250.0,0.00012092,2]
[330359807,1719328220186,255.97045815,0.00012092,2]
[330359827,1719328232078,-250.0,0.00014339,2]
[330359828,1719328232088,-380.23,0.00014392,2]